fUST/lending_fUST_20250430
["ID","MTS","AMOUNT","RATE_DAILY","PERIOD"]
[359379923,1745963460849,-151.0,0.00027945,7]
[359379924,1745963460858,-151.0,0.00027945,7]
[359379925,1745963460868,-304.758345,0.00027945,7]
[359379926,1745963460878,-304.758345,0.00027945,7]
[359379927,1745963460889,-304.758345,0.00027945,7]
[359379928,1745963460899,-304.758341,0.00027945,7]
[359379929,1745963460911,-400.0,0.00027945,2]
[359379930,1745963460921,-151.0,0.00027945,7]
[359379931,1745963460932,-400.0,0.00027945,2]
[359379932,1745963460943,-151.0,0.00027945,7]
[359379933,1745963460954,-405.18232363,0.00027945,2]
[359379934,1745963460964,-301.4991496,0.00027945,2]
[359379935,1745963460974,-400.0,0.00027945,2]
[359379936,1745963460984,-300.0,0.00027945,2]
[359379937,1745963460994,-400.0,0.00027945,2]
[359379938,1745963461005,-400.0,0.00027945,2]
[359379939,1745963461015,-400.0,0.00027945,2]
[359379940,1745963461026,-400.0,0.00027945,2]
[359379941,1745963461036,-400.0,0.00027945,2]
[359379942,1745963461045,-400.0,0.00027945,2]
[359379943,1745963461055,-400.0,0.00027945,2]
[359379944,1745963461065,-400.0,0.00027945,2]
[359379945,1745963461075,-400.0,0.00027945,2]
[359379946,1745963461085,-400.0,0.00027945,2]
[359379947,1745963461095,-400.0,0.00027945,2]
[359379948,1745963461105,-400.0,0.00027945,2]
[359379949,1745963461114,-300.0,0.00027945,2]
[359379950,1745963461124,-450.47,0.00027945,2]
[359379951,1745963461134,-400.0,0.00027945,2]
[359379952,1745963461143,-400.0,0.00027945,2]
[359379953,1745963461153,-300.0,0.00027945,2]
[359379954,1745963461163,-400.0,0.00027945,2]
[359379955,1745963461172,-200.0,0.00027945,2]
[359379956,1745963461182,-200.0,0.00027945,2]
[359379957,1745963461191,-400.0,0.00027945,2]
[359379958,1745963461201,-400.0,0.00027945,2]
[359379959,1745963461211,-315.12903703,0.00027945,2]
[359379960,1745963461220,-400.0,0.00027945,2]
[359379961,1745963461230,-400.0,0.00027945,2]
[359379962,1745963461239,-400.0,0.00027945,2]
[359379963,1745963461249,-400.0,0.00027945,2]
[359379964,1745963461258,-400.0,0.00027945,2]
[359379965,1745963461268,-400.0,0.00027945,2]
[359379966,1745963461278,-400.0,0.00027945,2]
[359379967,1745963461288,-400.0,0.00027945,2]
[359379968,1745963461298,-400.0,0.00027945,2]
[359379969,1745963461307,-345.11058447,0.00027945,2]
[359379970,1745963461317,-400.0,0.00027945,2]
[359379971,1745963461454,-400.0,0.00027945,2]
[359379972,1745963461465,-526.9,0.00027945,2]
[359379973,1745963461475,-400.0,0.00027945,2]
[359379974,1745963461485,-565.51,0.00027945,2]
[359379975,1745963461495,-694.89,0.00027945,2]
[359379976,1745963461505,-400.0,0.00027945,2]
[359379977,1745963461517,-400.0,0.00027945,2]
[359379978,1745963461527,-400.0,0.00027945,2]
[359379979,1745963461538,-400.0,0.00027945,2]
[359379980,1745963461548,-400.0,0.00027945,2]
[359379981,1745963461559,-153.22909506,0.00027945,2]
[359379982,1745963461762,-246.77090494,0.00027945,2]
[359379983,1745963461772,-1806.84,0.00027945,2]
[359379984,1745963461782,-400.0,0.00027945,2]
[359379985,1745963461791,-400.0,0.00027945,2]
[359379986,1745963461801,-176.35210592,0.00027945,2]
[359379987,1745963462191,-359.0,0.00027397,3]
[359379988,1745963462209,-400.0,0.00027397,2]
[359379989,1745963462224,-400.0,0.00027671,2]
[359379990,1745963462240,-223.64789408,0.00027945,2]
[359379991,1745963462256,-400.0,0.00027945,2]
[359379992,1745963462269,-400.0,0.00027945,2]
[359379993,1745963462286,-400.0,0.00027945,2]
[359379994,1745963462302,-400.0,0.00027945,2]
[359379995,1745963462320,-754.55,0.00027945,2]
[359379996,1745963462338,-400.0,0.00027945,2]
[359379997,1745963462351,-400.0,0.00027945,2]
[359379998,1745963462367,-331.1344706,0.00027945,2]
[359379999,1745963462391,-68.8655294,0.00027945,2]
[359380000,1745963462406,-400.0,0.00027945,2]
[359380001,1745963462419,-400.0,0.00027945,2]
[359380002,1745963462431,-525.08085778,0.00027945,2]
[359380007,1745964413573,39941.6,0.000273,30]
[359380029,1745964613136,-185.320093,0.00024997,2]
[359380030,1745964613161,-263.71711141,0.00025115,2]
[359380031,1745964620639,-10.28288859,0.00025115,2]
[359380032,1745964620660,-300.0,0.00025115,2]
[359380033,1745964620681,-34.9828838,0.00025115,2]
[359380034,1745964628538,-161.16470176,0.00025115,2]
[359380068,1745964632666,-87.85241444,0.00025115,2]
[359380070,1745964632677,-1200.0,0.00025115,2]
[359380072,1745964632686,-10000.0,0.00025116,2]
[359380074,1745964632696,-2811.0,0.000252,2]
[359380076,1745964632705,-500.0,0.00025205,2]
[359380078,1745964632715,-500.0,0.00025205,2]
[359380080,1745964632724,-500.0,0.00025205,2]
[359380082,1745964632733,-499.96,0.00025205,2]
[359380083,1745964632743,-3183.1915523,0.000259,6]
[359380084,1745964632752,-172.646831,0.00026266,2]
[359380086,1745964632761,-11508.71593312,0.00026266,2]
[359380088,1745964632773,-3014.8813951,0.00026266,2]
[359380091,1745964632784,-35055.49554799,0.00026266,2]
[359380093,1745964632797,-420.90712379,0.00026266,2]
[359380095,1745964632806,-207.4,0.00026337,2]
[359380097,1745964632816,-6078.4523337,0.00026391,2]
[359380100,1745964632825,-3183.19155206,0.00026417,6]
[359380103,1745964632835,-360.97962561,0.00026799,2]
[359380106,1745964632844,-486.21001437,0.00026889,2]
[359380109,1745964632854,-500.0,0.00026933,2]
[359380112,1745964632864,-500.0,0.00026933,2]
[359380114,1745964632874,-500.0,0.00026933,2]
[359380116,1745964632883,-500.0,0.00026933,2]
[359380118,1745964632892,-309.50798866,0.00026933,2]
[359380120,1745964632902,-500.0,0.00026933,2]
[359380122,1745964632912,-500.0,0.00026933,2]
[359380124,1745964632921,-500.0,0.00026933,2]
[359380126,1745964632931,-500.0,0.00026933,2]
[359380128,1745964632940,-500.0,0.00026933,2]
[359380130,1745964632949,-500.0,0.00026933,2]
[359380132,1745964632958,-500.0,0.00026933,2]
[359380134,1745964632967,-500.0,0.00026933,2]
[359380136,1745964632977,-500.0,0.00026933,2]
[359380138,1745964632986,-622.38366178,0.00026933,2]
[359380140,1745964632995,-500.0,0.00026933,2]
[359380142,1745964633005,-415.05858771,0.00026933,2]
[359380144,1745964633015,-500.0,0.00026933,2]
[359380146,1745964633024,-500.0,0.00026933,2]
[359380148,1745964633033,-500.0,0.00026933,2]
[359380150,1745964633044,-500.0,0.00026933,2]
[359380152,1745964633054,-500.0,0.00026933,2]
[359380154,1745964633063,-500.0,0.00026933,2]
[359380156,1745964633073,-500.0,0.00026933,2]
[359380158,1745964633083,-500.0,0.00026933,2]
[359380160,1745964633093,-500.0,0.00026933,2]
[359380162,1745964633103,-500.0,0.00026933,2]
[359380164,1745964633112,-500.0,0.00026933,2]
[359380166,1745964633121,-500.0,0.00026933,2]
[359380168,1745964633131,-500.0,0.00026933,2]
[359380170,1745964633141,-500.0,0.00026933,2]
[359380172,1745964633151,-500.0,0.00026933,2]
[359380174,1745964633160,-500.0,0.00026933,2]
[359380176,1745964633171,-500.0,0.00026933,2]
[359380178,1745964633182,-500.0,0.00026933,2]
[359380180,1745964633191,-500.0,0.00026933,2]
[359380182,1745964633202,-500.0,0.00026933,2]
[359380184,1745964633212,-500.0,0.00026933,2]
[359380185,1745964633222,-500.0,0.00026933,2]
[359380186,1745964633231,-500.0,0.00026933,2]
[359380187,1745964633241,-500.0,0.00026933,2]
[359380188,1745964633252,-500.0,0.00026933,2]
[359380189,1745964633261,-500.0,0.00026933,2]
[359380191,1745964633271,-500.0,0.00026933,2]
[359380192,1745964633281,-500.0,0.00026933,2]
[359380193,1745964633291,-500.0,0.00026933,2]
[359380194,1745964633300,-500.0,0.00026933,2]
[359380195,1745964633310,-500.0,0.00026933,2]
[359380196,1745964633320,-500.0,0.00026933,2]
[359380197,1745964633329,-500.0,0.00026933,2]
[359380198,1745964633339,-500.0,0.00026933,2]
[359380199,1745964633349,-500.0,0.00026933,2]
[359380200,1745964633358,-500.0,0.00026933,2]
[359380201,1745964633368,-500.0,0.00026933,2]
[359380202,1745964633378,-500.0,0.00026933,2]
[359380203,1745964633390,-500.0,0.00026933,2]
[359380204,1745964633400,-500.0,0.00026933,2]
[359380205,1745964633410,-500.0,0.00026933,2]
[359380206,1745964633420,-500.0,0.00026933,2]
[359380207,1745964633430,-500.0,0.00026933,2]
[359380208,1745964633440,-500.0,0.00026933,2]
[359380209,1745964633450,-500.0,0.00026933,2]
[359380210,1745964633460,-500.0,0.00026933,2]
[359380211,1745964633470,-500.0,0.00026933,2]
[359380212,1745964633480,-500.0,0.00026933,2]
[359380213,1745964633489,-500.0,0.00026933,2]
[359380214,1745964633499,-500.0,0.00026933,2]
[359380215,1745964633508,-500.0,0.00026933,2]
[359380216,1745964633518,-500.0,0.00026933,2]
[359380217,1745964633527,-124.29611153,0.00026933,2]
[359380218,1745964633550,-145.41652298,0.00026933,2]
[359380219,1745964633562,-500.0,0.00026933,2]
[359380220,1745964633726,-500.0,0.00026933,2]
[359380221,1745964633737,-500.0,0.00026933,2]
[359380222,1745964633747,-500.0,0.00026933,2]
[359380223,1745964633757,-500.0,0.00026933,2]
[359380224,1745964633767,-500.0,0.00026933,2]
[359380225,1745964633777,-500.0,0.00026933,2]
[359380226,1745964633786,-500.0,0.00026933,2]
[359380227,1745964633796,-500.0,0.00026933,2]
[359380228,1745964633806,-500.0,0.00026933,2]
[359380229,1745964633816,-399.17254563,0.00026933,2]
[359380230,1745964634044,-100.82745437,0.00026933,2]
[359380231,1745964634068,-149.17254563,0.00026933,2]
[359380246,1745964638369,-156.50146426,0.00026933,2]
[359380262,1745964638531,-194.32599011,0.00026933,2]
[359380264,1745964638542,-500.0,0.00026933,2]
[359380267,1745964638552,-500.0,0.00026933,2]
[359380269,1745964638562,-500.0,0.00026933,2]
[359380270,1745964638571,-500.0,0.00026933,2]
[359380273,1745964638582,-500.0,0.00026933,2]
[359380275,1745964638594,-500.0,0.00026933,2]
[359380277,1745964638604,-500.0,0.00026933,2]
[359380279,1745964638614,-500.0,0.00026933,2]
[359380281,1745964638623,-500.0,0.00026933,2]
[359380283,1745964638633,-500.0,0.00026933,2]
[359380285,1745964638643,-500.0,0.00026933,2]
[359380287,1745964638653,-500.0,0.00026933,2]
[359380289,1745964638662,-500.0,0.00026933,2]
[359380291,1745964638671,-281.33545757,0.00026933,2]
[359380292,1745964638684,-218.66454243,0.00026933,2]
[359380294,1745964638694,-221.91281061,0.00026933,2]
[359380296,1745964638703,-500.0,0.00026933,2]
[359380298,1745964638712,-500.0,0.00026933,2]
[359380299,1745964638722,-500.0,0.00026933,2]
[359380300,1745964638731,-500.0,0.00026933,2]
[359380302,1745964638742,-500.0,0.00026933,2]
[359380304,1745964638751,-500.0,0.00026933,2]
[359380306,1745964638762,-500.0,0.00026933,2]
[359380308,1745964638771,-500.0,0.00026933,2]
[359380310,1745964638780,-500.0,0.00026933,2]
[359380312,1745964638790,-499.99999999,0.00026933,2]
[359380314,1745964638800,-3183.19155206,0.00026934,7]
[359380316,1745964638814,-360.97962561,0.00026992,2]
[359380318,1745964638823,-160.0,0.00027,3]
[359380320,1745964638833,-160.0,0.00027,3]
[359380322,1745964638843,-360.97962561,0.00027185,2]
[359380324,1745964638852,-420.0,0.00027205,2]
[359380326,1745964638862,-160.0,0.00027206,2]
[359380328,1745964638872,-1000.0,0.0002729,5]
[359380331,1745964638883,-1200.0,0.00027328,2]
[359380333,1745964638892,-500.0,0.00027373,2]
[359380334,1745964638902,-500.0,0.00027373,2]
[359380337,1745964638912,-500.0,0.00027373,2]
[359380339,1745964638922,-500.0,0.00027373,2]
[359380341,1745964638932,-500.0,0.00027373,2]
[359380343,1745964638942,-451.00035388,0.00027373,2]
[359380345,1745964638952,-500.0,0.00027373,2]
[359380347,1745964638962,-500.0,0.00027373,2]
[359380349,1745964638972,-500.0,0.00027373,2]
[359380350,1745964638982,-500.0,0.00027373,2]
[359380352,1745964638991,-500.0,0.00027373,2]
[359380354,1745964639001,-500.0,0.00027373,2]
[359380356,1745964639011,-500.0,0.00027373,2]
[359380358,1745964639021,-500.0,0.00027373,2]
[359380359,1745964639031,-360.97962561,0.00027378,2]
[359380360,1745964639041,-308.88710829,0.00027387,2]
[359380361,1745964639051,-437.37,0.00027387,3]
[359380362,1745964639060,-218.68,0.00027387,3]
[359380363,1745964639069,-656.07,0.00027387,3]
[359380364,1745964639079,-231.08443238,0.00027396,2]
[359380365,1745964639090,-237.33558168,0.00027396,2]
[359380366,1745964639099,-500.0,0.00027396,2]
[359380367,1745964639109,-477.96552612,0.00027396,2]
[359380368,1745964639118,-160.0,0.00027396,2]
[359380369,1745964639127,-231.87144426,0.00027397,2]
[359380370,1745964639137,-400.0,0.00027397,2]
[359380371,1745964639147,-273.5339643,0.00027397,2]
[359380372,1745964639157,-200.0,0.00027397,2]
[359380373,1745964639168,-400.0,0.00027397,2]
[359380374,1745964639177,-500.0,0.00027397,2]
[359380375,1745964639187,-511.34605046,0.00027397,2]
[359380376,1745964639197,-200.0,0.00027397,2]
[359380377,1745964639206,-200.0,0.00027397,2]
[359380378,1745964639216,-467.88,0.00027397,2]
[359380379,1745964639228,-641.2,0.00027397,2]
[359380380,1745964639238,-400.0,0.00027397,2]
[359380381,1745964639247,-212.17621799,0.00027397,2]
[359380382,1745964639257,-814.39,0.00027397,2]
[359380383,1745964639267,-200.0,0.00027397,2]
[359380384,1745964639277,-400.0,0.00027397,2]
[359380385,1745964639287,-400.0,0.00027397,2]
[359380386,1745964639297,-400.0,0.00027397,2]
[359380387,1745964639306,-200.0,0.00027397,2]
[359380388,1745964639316,-400.0,0.00027397,2]
[359380389,1745964639326,-400.0,0.00027397,2]
[359380390,1745964639336,-924.72,0.00027397,2]
[359380391,1745964639345,-400.0,0.00027397,2]
[359380392,1745964639356,-400.0,0.00027397,2]
[359380393,1745964639366,-400.0,0.00027397,2]
[359380394,1745964639378,-400.0,0.00027397,2]
[359380395,1745964639390,-400.0,0.00027397,2]
[359380396,1745964639400,-500.80478075,0.00027397,2]
[359380397,1745964639410,-400.0,0.00027397,2]
[359380398,1745964639420,-521.4844628,0.00027397,2]
[359380399,1745964639431,-400.0,0.00027397,2]
[359380400,1745964639440,-500.0,0.00027397,2]
[359380401,1745964639450,-400.0,0.00027397,2]
[359380402,1745964639460,-400.0,0.00027397,2]
[359380403,1745964639470,-400.0,0.00027397,2]
[359380404,1745964639479,-400.0,0.00027397,2]
[359380405,1745964639489,-500.0,0.00027397,2]
[359380406,1745964639499,-400.0,0.00027397,2]
[359380407,1745964639508,-400.0,0.00027397,2]
[359380408,1745964639519,-212.41805421,0.00027397,2]
[359380409,1745964639528,-504.87027715,0.00027397,2]
[359380410,1745964639537,-400.0,0.00027397,2]
[359380411,1745964639548,-400.0,0.00027397,2]
[359380412,1745964639557,-500.0,0.00027397,2]
[359380413,1745964639567,-200.0,0.00027397,2]
[359380414,1745964639576,-200.0,0.00027397,2]
[359380415,1745964639586,-541.06,0.00027397,2]
[359380416,1745964639595,-400.0,0.00027397,2]
[359380417,1745964639605,-400.0,0.00027397,2]
[359380418,1745964639614,-400.0,0.00027397,2]
[359380419,1745964639623,-400.0,0.00027397,2]
[359380420,1745964639633,-200.0,0.00027397,2]
[359380421,1745964639643,-400.0,0.00027397,2]
[359380422,1745964639653,-400.0,0.00027397,2]
[359380423,1745964639662,-400.0,0.00027397,2]
[359380424,1745964639671,-456.92,0.00027397,2]
[359380425,1745964639681,-400.0,0.00027397,2]
[359380426,1745964639690,-400.0,0.00027397,2]
[359380427,1745964639700,-400.0,0.00027397,2]
[359380428,1745964639710,-400.0,0.00027397,2]
[359380429,1745964639720,-400.0,0.00027397,2]
[359380430,1745964639729,-400.0,0.00027397,2]
[359380431,1745964639738,-200.0,0.00027397,2]
[359380432,1745964639748,-200.0,0.00027397,2]
[359380433,1745964639757,-400.0,0.00027397,2]
[359380434,1745964639767,-400.0,0.00027397,2]
[359380435,1745964639777,-200.0,0.00027397,2]
[359380436,1745964639787,-400.0,0.00027397,2]
[359380437,1745964639797,-400.0,0.00027397,2]
[359380438,1745964639807,-442.45,0.00027397,2]
[359380439,1745964639816,-400.0,0.00027397,2]
[359380440,1745964639825,-400.0,0.00027397,2]
[359380441,1745964639835,-400.0,0.00027397,2]
[359380442,1745964639845,-1324.26,0.00027397,2]
[359380443,1745964639855,-765.36,0.00027397,2]
[359380444,1745964639864,-400.0,0.00027397,2]
[359380445,1745964639874,-400.0,0.00027397,2]
[359380446,1745964639884,-400.0,0.00027397,2]
[359380447,1745964639893,-400.0,0.00027397,2]
[359380448,1745964639903,-200.0,0.00027397,2]
[359380449,1745964639913,-332.9551267,0.00027397,2]
[359380450,1745964639922,-400.0,0.00027397,2]
[359380451,1745964639933,-400.0,0.00027397,2]
[359380452,1745964639943,-500.0,0.00027397,2]
[359380453,1745964639954,-501.25,0.00027397,2]
[359380454,1745964639965,-2258.42,0.00027397,2]
[359380455,1745964639976,-500.0,0.00027397,2]
[359380456,1745964639986,-491.62,0.00027397,2]
[359380457,1745964639996,-478.91,0.00027397,2]
[359380458,1745964640006,-400.0,0.00027397,2]
[359380459,1745964640017,-500.0,0.00027397,2]
[359380460,1745964640027,-403.61,0.00027397,2]
[359380461,1745964640038,-400.0,0.00027397,2]
[359380462,1745964640049,-400.0,0.00027397,2]
[359380463,1745964640058,-400.0,0.00027397,2]
[359380464,1745964640068,-400.0,0.00027397,2]
[359380465,1745964640078,-409.75,0.00027397,2]
[359380466,1745964640088,-400.0,0.00027397,2]
[359380467,1745964640098,-400.0,0.00027397,2]
[359380468,1745964640109,-400.0,0.00027397,2]
[359380469,1745964640120,-820.13,0.00027397,2]
[359380470,1745964640130,-400.0,0.00027397,2]
[359380471,1745964640142,-500.0,0.00027397,2]
[359380472,1745964640152,-941.89,0.00027397,2]
[359380473,1745964640162,-500.0,0.00027397,2]
[359380474,1745964640173,-400.0,0.00027397,2]
[359380475,1745964640184,-400.0,0.00027397,2]
[359380476,1745964640194,-500.0,0.00027397,2]
[359380477,1745964640204,-400.0,0.00027397,2]
[359380478,1745964640214,-400.0,0.00027397,2]
[359380479,1745964640224,-400.0,0.00027397,2]
[359380480,1745964640233,-400.0,0.00027397,2]
[359380481,1745964640243,-400.0,0.00027397,2]
[359380482,1745964640252,-500.0,0.00027397,2]
[359380483,1745964640262,-400.0,0.00027397,2]
[359380484,1745964640271,-541.68,0.00027397,2]
[359380486,1745964640281,-400.0,0.00027397,2]
[359380488,1745964640290,-1035.94,0.00027397,2]
[359380489,1745964640300,-200.0,0.00027397,2]
[359380490,1745964640309,-400.0,0.00027397,2]
[359380491,1745964640318,-430.86,0.00027397,2]
[359380492,1745964640327,-200.0,0.00027397,2]
[359380493,1745964640337,-539.77,0.00027397,2]
[359380494,1745964640346,-466.18,0.00027397,2]
[359380495,1745964640357,-500.0,0.00027397,2]
[359380496,1745964640367,-500.0,0.00027397,2]
[359380497,1745964640379,-400.0,0.00027397,2]
[359380498,1745964640391,-972.2,0.00027397,2]
[359380499,1745964640401,-400.0,0.00027397,2]
[359380500,1745964640411,-400.0,0.00027397,2]
[359380501,1745964640422,-400.0,0.00027397,2]
[359380502,1745964640432,-400.0,0.00027397,2]
[359380503,1745964640442,-400.0,0.00027397,2]
[359380504,1745964640454,-200.0,0.00027397,2]
[359380505,1745964640466,-400.0,0.00027397,2]
[359380506,1745964640476,-495.34,0.00027397,2]
[359380507,1745964640486,-500.0,0.00027397,2]
[359380508,1745964640495,-438.9,0.00027397,2]
[359380509,1745964640505,-674.73,0.00027397,2]
[359380510,1745964640515,-400.0,0.00027397,2]
[359380511,1745964640526,-400.0,0.00027397,2]
[359380512,1745964640537,-759.88,0.00027397,2]
[359380513,1745964640547,-801.75,0.00027397,2]
[359380514,1745964640557,-400.0,0.00027397,2]
[359380516,1745964640567,-657.56,0.00027397,2]
[359380518,1745964640577,-1136.94,0.00027397,2]
[359380520,1745964640586,-400.0,0.00027397,2]
[359380521,1745964640595,-501.09344392,0.00027397,2]
[359380523,1745964640605,-400.0,0.00027397,2]
[359380525,1745964640615,-400.0,0.00027397,2]
[359380527,1745964640624,-1601.9,0.00027397,2]
[359380529,1745964640633,-498.91,0.00027397,2]
[359380531,1745964640642,-400.0,0.00027397,2]
[359380532,1745964640652,-1423.83,0.00027397,2]
[359380533,1745964640662,-400.0,0.00027397,2]
[359380534,1745964640672,-400.0,0.00027397,2]
[359380535,1745964640681,-400.0,0.00027397,2]
[359380536,1745964640691,-1012.1,0.00027397,2]
[359380540,1745964640843,-400.0,0.00027397,2]
[359380541,1745964640854,-400.0,0.00027397,2]
[359380542,1745964640864,-400.0,0.00027397,2]
[359380545,1745964640874,-417.21,0.00027397,2]
[359380546,1745964640883,-400.0,0.00027397,2]
[359380548,1745964640892,-200.0,0.00027397,2]
[359380550,1745964640901,-400.0,0.00027397,2]
[359380553,1745964640911,-633.5,0.00027397,2]
[359380555,1745964640921,-400.0,0.00027397,2]
[359380557,1745964640931,-400.0,0.00027397,2]
[359380559,1745964640941,-400.0,0.00027397,2]
[359380561,1745964640950,-400.0,0.00027397,2]
[359380563,1745964640959,-400.0,0.00027397,2]
[359380565,1745964640968,-1151.14,0.00027397,2]
[359380567,1745964640977,-628.07,0.00027397,2]
[359380569,1745964640987,-2748.64,0.00027397,2]
[359380570,1745964640997,-3276.42,0.00027397,2]
[359380572,1745964641006,-1373.51,0.00027397,2]
[359380573,1745964641015,-400.0,0.00027397,2]
[359380574,1745964641025,-889.04,0.00027397,2]
[359380576,1745964641035,-400.0,0.00027397,2]
[359380577,1745964641045,-400.0,0.00027397,2]
[359380578,1745964641054,-400.0,0.00027397,2]
[359380579,1745964641063,-1304.26,0.00027397,2]
[359380580,1745964641073,-400.0,0.00027397,2]
[359380581,1745964641083,-400.0,0.00027397,2]
[359380582,1745964641093,-463.89,0.00027397,2]
[359380583,1745964641102,-400.0,0.00027397,2]
[359380584,1745964641111,-169.59190838,0.00027397,2]
[359380585,1745964641121,-500.0,0.00027397,2]
[359380586,1745964641130,-769.65,0.00027397,2]
[359380587,1745964641139,-400.0,0.00027397,2]
[359380588,1745964641149,-400.0,0.00027397,2]
[359380589,1745964641158,-635.03,0.00027397,2]
[359380590,1745964641170,-974.76,0.00027397,2]
[359380591,1745964641180,-514.76,0.00027397,2]
[359380592,1745964641189,-825.21,0.00027397,2]
[359380593,1745964641199,-400.0,0.00027397,2]
[359380594,1745964641209,-400.0,0.00027397,2]
[359380595,1745964641220,-400.0,0.00027397,2]
[359380596,1745964641230,-400.0,0.00027397,2]
[359380597,1745964641240,-992.46,0.00027397,2]
[359380598,1745964641251,-1636.65,0.00027397,2]
[359380599,1745964641261,-689.98,0.00027397,2]
[359380600,1745964641271,-400.0,0.00027397,2]
[359380601,1745964641280,-1093.37,0.00027397,2]
[359380602,1745964641290,-850.14,0.00027397,2]
[359380603,1745964641300,-1686.22,0.00027397,2]
[359380604,1745964641310,-575.83,0.00027397,2]
[359380605,1745964641322,-400.0,0.00027397,2]
[359380606,1745964641332,-400.0,0.00027397,2]
[359380607,1745964641342,-400.0,0.00027397,2]
[359380608,1745964641352,-400.0,0.00027397,2]
[359380609,1745964641363,-2389.97,0.00027397,2]
[359380610,1745964641373,-816.44,0.00027397,2]
[359380611,1745964641387,-400.0,0.00027397,2]
[359380612,1745964641398,-400.0,0.00027397,2]
[359380613,1745964641408,-687.47,0.00027397,2]
[359380614,1745964641418,-605.96,0.00027397,2]
[359380615,1745964641429,-400.0,0.00027397,2]
[359380616,1745964641439,-400.0,0.00027397,2]
[359380617,1745964641451,-790.83,0.00027397,2]
[359380618,1745964641463,-400.0,0.00027397,2]
[359380619,1745964641474,-2863.42,0.00027397,2]
[359380620,1745964641483,-400.0,0.00027397,2]
[359380621,1745964641492,-400.0,0.00027397,2]
[359380622,1745964641502,-1912.8,0.00027397,2]
[359380623,1745964641511,-1255.28,0.00027397,2]
[359380624,1745964641521,-400.0,0.00027397,2]
[359380625,1745964641530,-1984.8,0.00027397,2]
[359380626,1745964641539,-400.0,0.00027397,2]
[359380627,1745964641550,-400.0,0.00027397,2]
[359380628,1745964641559,-400.0,0.00027397,2]
[359380629,1745964641568,-1984.9,0.00027397,2]
[359380630,1745964641577,-400.0,0.00027397,2]
[359380631,1745964641586,-531.61411962,0.00027397,2]
[359380632,1745964641595,-400.0,0.00027397,2]
[359380633,1745964641605,-1048.55,0.00027397,2]
[359380634,1745964641614,-400.0,0.00027397,2]
[359380635,1745964641623,-810.59,0.00027397,2]
[359380636,1745964641631,-400.0,0.00027397,2]
[359380637,1745964641640,-1059.81,0.00027397,2]
[359380638,1745964641649,-1362.09,0.00027397,2]
[359380639,1745964641658,-400.0,0.00027397,2]
[359380640,1745964641667,-400.0,0.00027397,2]
[359380641,1745964641676,-400.0,0.00027397,2]
[359380642,1745964641685,-2404.79,0.00027397,2]
[359380643,1745964641694,-588.59,0.00027397,2]
[359380644,1745964641703,-780.05,0.00027397,2]
[359380645,1745964641712,-992.82,0.00027397,2]
[359380646,1745964641721,-400.0,0.00027397,2]